bitfinex/quotes_BTCUSD_20240906
["timestamp","ask_amount","ask_price","bid_price","bid_amount"]
[1725584268622,1.07317518,56290.0,56289.0,0.001632]
[1725584268834,1.07317518,56290.0,56289.0,0.0125249]
[1725584269709,1.09710701,56290.0,56289.0,0.0125249]
[1725584270181,1.07317518,56290.0,56289.0,0.0125249]
[1725584274502,0.98407518,56290.0,56289.0,0.0125249]
[1725584275146,0.98489118,56290.0,56289.0,0.0125249]
[1725584275360,0.98488528,56290.0,56289.0,0.0125249]
[1725584275598,0.62958328,56290.0,56289.0,0.0125249]
[1725584277596,0.27428128,56290.0,56289.0,0.0125249]
[1725584277812,0.27428128,56290.0,56289.0,0.59869618]
[1725584277813,0.01973028,56290.0,56289.0,0.59869618]
[1725584278039,0.01973028,56290.0,56289.0,0.5454879]
[1725584278283,0.01973028,56290.0,56289.0,0.62530032]
[1725584278755,0.01973155,56290.0,56289.0,0.62530032]
[1725584279000,0.01973155,56290.0,56289.0,0.98060932]
[1725584279241,0.01973155,56290.0,56289.0,0.9007969]
[1725584279467,0.01973155,56290.0,56289.0,1.2561059]
[1725584281310,0.01973155,56290.0,56289.0,1.36252246]
[1725584281548,0.01973244,56290.0,56289.0,1.36252246]
[1725584282005,0.01973244,56290.0,56289.0,1.4444059]
[1725584282220,0.01973244,56290.0,56289.0,1.5774266]
[1725584283640,0.01973244,56290.0,56289.0,1.57768857]
[1725584284114,0.01973244,56290.0,56289.0,1.4444059]
[1725584284332,0.01973244,56290.0,56289.0,1.7997149]
[1725584284781,0.003116,56290.0,56289.0,1.8017149]
[1725584284992,0.003116,56290.0,56289.0,1.7997149]
[1725584287443,0.355209,56305.0,56297.0,0.355256]
[1725584287444,0.28151562,56305.0,56297.0,0.355256]
[1725584287665,0.28151562,56305.0,56298.0,0.177624]
[1725584287666,0.177618,56301.0,56298.0,0.177624]
[1725584287892,0.01661803,56300.0,56298.0,0.18848615]
[1725584288134,0.177613,56302.0,56299.0,0.177623]
[1725584288344,0.177611,56303.0,56299.0,0.177623]
[1725584288594,0.01661774,56302.0,56299.0,0.177623]
[1725584288812,0.01661774,56301.0,56300.0,0.01086015]
[1725584289684,0.01661774,56301.0,56298.0,0.177623]
[1725584289929,0.177615,56302.0,56297.0,0.05336069]
[1725584289930,0.09351774,56300.0,56297.0,0.05336069]
[1725584290148,0.177632,56296.0,56295.0,0.05336069]
[1725584290356,0.177632,56296.0,56294.0,0.05336069]
[1725584290357,0.177635,56295.0,56294.0,0.05336069]
[1725584290567,0.177635,56295.0,56292.0,0.08004104]
[1725584290568,0.01661774,56295.0,56292.0,0.08004104]
[1725584290790,0.19425674,56294.0,56292.0,0.08004104]
[1725584291014,0.01661774,56293.0,56292.0,0.08004104]
[1725584291429,0.177639,56294.0,56292.0,0.08004104]
[1725584291642,0.01661439,56293.0,56292.0,0.25768604]
[1725584293608,0.01661439,56293.0,56292.0,0.25769433]
[1725584294473,0.01661439,56293.0,56292.0,0.61298433]
[1725584294702,0.177632,56296.0,56293.0,0.177641]
[1725584294932,0.53289,56297.0,56295.0,0.05336594]
[1725584295167,0.01661502,56296.0,56295.0,0.05336594]
[1725584296696,0.01661502,56296.0,56295.0,0.23100094]
[1725584296928,0.01661502,56296.0,56295.0,0.985177]
[1725584297360,0.01661502,56296.0,56295.0,1.44718045]
[1725584297578,0.01661502,56296.0,56295.0,1.54528045]
[1725584298718,0.01661502,56296.0,56295.0,1.54527169]
[1725584299389,0.355162,56313.0,56309.0,0.17759]
[1725584299602,0.355162,56313.0,56307.0,0.355189]
[1725584299603,0.177572,56315.0,56307.0,0.0751]
[1725584299814,0.177573,56315.0,56312.0,0.17758]
[1725584300052,0.177573,56315.0,56311.0,0.177583]
[1725584300268,0.355139,56316.0,56312.0,0.177581]
[1725584300269,0.17757,56316.0,56312.0,0.177581]
[1725584300726,0.37955248,56318.0,56312.0,0.177581]
[1725584300942,0.177572,56315.0,56311.0,0.177584]
[1725584301412,0.177577,56314.0,56310.0,0.177587]
[1725584301637,0.355154,56314.0,56308.0,0.355187]
[1725584301858,0.355154,56314.0,56309.0,0.17759]
[1725584302119,0.177582,56312.0,56311.0,0.01086015]
[1725584302338,0.177582,56312.0,56310.0,0.01086015]
[1725584302563,0.177582,56312.0,56309.0,0.17759]
[1725584302787,0.177582,56312.0,56311.0,0.01086015]
[1725584303021,0.177582,56312.0,56309.0,0.17759]
[1725584303917,0.177582,56312.0,56310.0,0.01086015]
[1725584304850,0.177582,56312.0,56309.0,0.177591]
[1725584305073,0.177582,56312.0,56311.0,0.01086015]
[1725584305297,0.177582,56312.0,56309.0,0.177591]
[1725584305529,0.177582,56312.0,56311.0,0.01086015]
[1725584305724,0.177582,56312.0,56309.0,0.177591]
[1725584306192,0.177582,56312.0,56310.0,0.01086015]
[1725584307146,0.177579,56313.0,56310.0,0.01086015]
[1725584307385,0.355129,56318.0,56311.0,0.424369]
[1725584307602,0.4726,56323.0,56318.0,0.177561]
[1725584307856,0.177554,56321.0,56318.0,0.177562]
[1725584308097,0.177554,56321.0,56319.0,0.01074228]
[1725584308319,0.177553,56321.0,56318.0,0.17756]
[1725584308571,0.177553,56321.0,56320.0,0.01074228]
[1725584308792,0.177558,56320.0,56317.0,0.177566]
[1725584309438,0.177554,56321.0,56318.0,0.177562]
[1725584309905,0.177562,56319.0,56315.0,0.17757]
[1725584310120,0.177557,56320.0,56317.0,0.177565]
[1725584310412,0.355101,56322.0,56315.0,0.355142]
[1725584310640,0.17757,56316.0,56313.0,0.177576]
[1725584310854,0.355133,56317.0,56312.0,0.17758]
[1725584311073,0.177581,56313.0,56310.0,0.177587]
[1725584311541,0.177576,56314.0,56311.0,0.177583]
[1725584312240,0.355143,56316.0,56310.0,0.355174]
[1725584312488,0.177576,56314.0,56311.0,0.177584]
[1725584313636,0.355153,56314.0,56309.0,0.35518]
[1725584313856,0.53273,56314.0,56311.0,0.177585]
[1725584314936,0.177578,56313.0,56311.0,0.177585]
[1725584315178,0.355143,56316.0,56312.0,0.177581]
[1725584315400,0.177575,56315.0,56312.0,0.177581]
[1725584315623,0.177575,56315.0,56313.0,0.0887]
[1725584315838,0.177568,56317.0,56314.0,0.246772]
[1725584316084,0.17757,56316.0,56314.0,0.0692]
[1725584316306,0.53271,56316.0,56314.0,0.0692]
[1725584316738,0.53271,56316.0,56315.0,0.01073311]
[1725584316956,0.17757,56316.0,56315.0,0.01073311]
[1725584318891,0.532708,56316.0,56315.0,0.01073311]
[1725584319593,0.177576,56314.0,56311.0,0.177584]
[1725584319894,0.177572,56315.0,56312.0,0.17758]
[1725584320118,0.177568,56317.0,56311.0,0.355168]
[1725584320349,0.177571,56316.0,56313.0,0.177578]
[1725584320806,0.177566,56317.0,56314.0,0.177574]
[1725584321037,0.177566,56317.0,56315.0,0.1647]
[1725584321297,0.177569,56316.0,56315.0,0.1647]
[1725584321516,0.177563,56318.0,56315.0,0.342271]
[1725584321985,0.177567,56317.0,56315.0,0.1647]
[1725584323542,0.177564,56318.0,56315.0,0.34227]
[1725584323809,0.17756,56319.0,56316.0,0.177568]
[1725584324022,0.000816,56316.0,56315.0,0.697415]
[1725584325095,0.000816,56316.0,56315.0,0.342271]
[1725584327728,0.02482436,56321.0,56315.0,0.342271]
[1725584327729,0.00082,56338.0,56336.0,0.247306]
[1725584327946,0.00082,56338.0,56315.0,0.80495645]
[1725584327947,0.00082,56338.0,56329.0,0.0698]
[1725584328605,0.00082,56338.0,56329.0,0.424851]
[1725584328877,0.00082,56338.0,56331.0,0.17752]
[1725584329308,0.177506,56336.0,56330.0,0.01070381]
[1725584329528,0.17751,56335.0,56332.0,0.01067759]
[1725584329714,0.17751,56335.0,56329.0,0.0698]
[1725584329946,0.17751,56335.0,56326.0,0.1647]
[1725584330167,0.177506,56336.0,56330.0,0.01067759]
[1725584330385,0.177506,56336.0,56328.0,0.17753]
[1725584330605,0.177506,56336.0,56331.0,0.01067759]
[1725584330776,0.177506,56336.0,56328.0,0.17753]
[1725584330992,0.177506,56336.0,56332.0,0.01067759]
[1725584331230,0.0888,56335.0,56321.0,0.1647]
[1725584331466,0.0888,56335.0,56333.0,0.01067759]
[1725584331467,0.26631,56335.0,56333.0,0.01067759]
[1725584331686,0.17751,56335.0,56327.0,0.177534]
[1725584332108,0.177511,56335.0,56328.0,0.0105849]
[1725584333425,0.177512,56334.0,56328.0,0.0105849]
[1725584333637,0.177512,56334.0,56328.0,0.1881159]
[1725584334344,0.177518,56333.0,56328.0,0.0105849]
[1725584334553,0.177518,56333.0,56328.0,0.177531]
[1725584334765,0.177513,56334.0,56329.0,0.18811827]
[1725584335548,0.177516,56333.0,56329.0,0.18811827]
[1725584335758,0.17752,56332.0,56329.0,0.01059127]
[1725584336172,0.17752,56332.0,56328.0,0.177529]
[1725584336399,0.17752,56332.0,56330.0,0.01059158]
[1725584336594,0.17752,56332.0,56328.0,0.177529]
[1725584337029,0.17752,56332.0,56329.0,0.0105914]
[1725584337684,0.177516,56333.0,56329.0,0.1881184]
[1725584338117,0.17752,56332.0,56329.0,0.0105914]
[1725584338314,0.177516,56333.0,56329.0,0.177527]
[1725584338536,0.177516,56333.0,56330.0,0.0105914]
[1725584340307,0.355029,56334.0,56330.0,0.0105914]
[1725584340758,0.177516,56333.0,56329.0,0.177527]
[1725584340968,0.177516,56333.0,56331.0,0.0105942]
[1725584341185,0.177516,56333.0,56330.0,0.177524]
[1725584341391,0.177516,56333.0,56332.0,0.0105942]
[1725584341597,0.177516,56333.0,56330.0,0.177524]
[1725584341807,0.177516,56333.0,56332.0,0.0105942]
[1725584342029,0.177516,56333.0,56330.0,0.177524]
[1725584342259,0.177516,56333.0,56331.0,0.0105942]
[1725584343647,0.177518,56332.0,56331.0,0.0105942]
[1725584343877,0.355029,56334.0,56331.0,0.0105942]
[1725584344101,0.887592,56332.0,56331.0,0.0105942]
[1725584344339,0.17755,56322.0,56321.0,0.00163]
[1725584344598,0.532651,56322.0,56321.0,0.00163]
[1725584345037,0.887752,56322.0,56321.0,0.00163]
[1725584345951,1.242853,56322.0,56321.0,0.00163]
[1725584346172,0.922652,56322.0,56321.0,0.00163]
[1725584346400,1.377753,56322.0,56321.0,0.00163]
[1725584346599,2.158999,56322.0,56321.0,0.00163]
[1725584347324,2.5141,56322.0,56321.0,0.00163]
[1725584348241,2.5161,56322.0,56321.0,0.00163]
[1725584348448,1.983449,56322.0,56321.0,0.00163]
[1725584348686,2.160999,56322.0,56321.0,0.00163]
[1725584348917,2.158999,56322.0,56321.0,0.00163]
[1725584349387,2.18366568,56322.0,56321.0,0.00163]
[1725584350983,1.40241968,56322.0,56321.0,0.00163]
[1725584351185,3.90857068,56322.0,56321.0,0.00163]
[1725584351649,3.93640124,56322.0,56321.0,0.00163]
[1725584351854,4.29150224,56322.0,56321.0,0.00163]
[1725584352056,3.93640124,56322.0,56321.0,0.00163]
[1725584352274,3.84649324,56322.0,56321.0,0.00163]
[1725584352471,3.69462024,56322.0,56321.0,0.00163]
[1725584352698,3.50192724,56322.0,56321.0,0.00163]
[1725584352901,3.14589924,56322.0,56321.0,0.00163]
[1725584353374,3.50100024,56322.0,56321.0,0.00163]
[1725584353520,3.14589924,56322.0,56321.0,0.00163]
[1725584358316,3.11806868,56322.0,56321.0,0.00163]
[1725584361335,2.37296668,56322.0,56321.0,0.00163]
[1725584361547,0.68514787,56322.0,56321.0,0.00163]
[1725584361771,1.04024887,56322.0,56321.0,0.00163]
[1725584366593,2.35247687,56322.0,56321.0,0.00163]
[1725584366795,2.59186987,56322.0,56321.0,0.00163]
[1725584366979,2.55570287,56322.0,56321.0,0.00163]
[1725584367845,2.51520287,56322.0,56321.0,0.00163]
[1725584368265,2.48737268,56322.0,56321.0,0.00163]
[1725584368709,2.30982268,56322.0,56321.0,0.00163]
[1725584368921,2.48737268,56322.0,56321.0,0.00163]
[1725584369130,2.15193468,56322.0,56321.0,0.00163]
[1725584370223,2.50703568,56322.0,56321.0,0.00163]
[1725584370442,2.15193468,56322.0,56321.0,0.00163]
[1725584371747,2.02727168,56322.0,56321.0,0.00163]
[1725584372177,2.38237268,56322.0,56321.0,0.00163]
[1725584373032,2.02727168,56322.0,56321.0,0.00163]
[1725584373692,2.11281068,56322.0,56321.0,0.00163]
[1725584374845,1.97031068,56322.0,56321.0,0.00163]
[1725584375062,1.88398068,56322.0,56321.0,0.00163]
[1725584375254,1.18948168,56322.0,56321.0,0.00163]
[1725584376113,1.18948168,56322.0,56321.0,0.16933]
[1725584376396,0.177545,56324.0,56321.0,0.16933]
[1725584376593,0.100815,56322.0,56321.0,0.09253]
[1725584376814,0.100815,56322.0,56321.0,0.16933]
[1725584377032,0.278365,56322.0,56321.0,0.16933]
[1725584378765,0.633466,56322.0,56321.0,0.16933]
[1725584378974,0.278365,56322.0,56321.0,0.16933]
[1725584379436,0.633466,56322.0,56321.0,0.16933]
[1725584381655,0.988567,56322.0,56321.0,0.16933]
[1725584382083,1.343668,56322.0,56321.0,0.16933]
[1725584383588,1.343668,56322.0,56321.0,0.07843]
[1725584385820,1.562875,56322.0,56321.0,0.07843]
[1725584386044,1.562875,56322.0,56321.0,0.00163]
[1725584387539,1.917976,56322.0,56321.0,0.00163]
[1725584388660,1.562875,56322.0,56321.0,0.00163]
[1725584391567,1.59070332,56322.0,56321.0,0.00163]
[1725584397190,2.4071648,56322.0,56321.0,0.00163]
[1725584397406,2.58512968,56322.0,56321.0,0.00163]
[1725584397626,2.45230532,56322.0,56321.0,0.00163]
[1725584398337,2.424477,56322.0,56321.0,0.00163]
[1725584401154,2.779578,56322.0,56321.0,0.00163]
[1725584401390,2.799578,56322.0,56321.0,0.00163]
[1725584401627,2.82740934,56322.0,56321.0,0.00163]
[1725584401861,2.82740934,56322.0,56305.0,0.0803]
[1725584401862,1.598404,56306.0,56305.0,0.0803]
[1725584402099,3.843054,56306.0,56305.0,0.0803]
[1725584402342,3.842929,56306.0,56305.0,0.0803]
[1725584404284,2.37638045,56306.0,56305.0,0.0803]
[1725584404514,1.36712745,56306.0,56305.0,0.0803]
[1725584405236,0.988002,56306.0,56305.0,0.1702]
[1725584406632,0.2776,56306.0,56305.0,0.1702]
[1725584406864,0.632801,56306.0,56305.0,0.1702]
[1725584408221,1.343203,56306.0,56305.0,0.1702]
[1725584409370,0.177629,56297.0,56296.0,0.1002]
[1725584409595,0.532897,56296.0,56295.0,0.00163]
[1725584409812,3.563562,56296.0,56295.0,0.00163]
[1725584410813,3.565562,56296.0,56295.0,0.00163]
[1725584410937,3.964427,56296.0,56295.0,0.00163]
[1725584411174,4.04203551,56296.0,56295.0,0.00163]
[1725584411388,1.47851,56296.0,56295.0,0.18233]
[1725584411601,1.343427,56296.0,56295.0,0.18233]
[1725584411815,1.704351,56296.0,56295.0,0.18233]
[1725584412315,1.343427,56296.0,56295.0,0.18233]
[1725584412528,1.53523675,56296.0,56295.0,0.18233]
[1725584413002,1.56307915,56296.0,56295.0,0.18233]
[1725584413627,1.56307915,56296.0,56295.0,0.00163]
[1725584414682,1.38544715,56296.0,56295.0,0.00163]
[1725584414915,1.56307915,56296.0,56295.0,0.00163]
[1725584415366,1.50327315,56296.0,56295.0,0.00163]
[1725584416250,1.39610815,56296.0,56295.0,0.00163]
[1725584416462,1.65851215,56296.0,56295.0,0.00163]
[1725584416689,1.6336734,56296.0,56295.0,0.00163]
[1725584416901,1.5508664,56296.0,56295.0,0.00163]
[1725584418244,1.523024,56296.0,56295.0,0.00163]
[1725584418506,1.54751804,56296.0,56295.0,0.00163]
[1725584419208,1.343427,56296.0,56295.0,0.00163]
[1725584419426,1.520315,56296.0,56295.0,0.00163]
[1725584420567,1.520315,56296.0,56295.0,0.18233]
[1725584420789,1.343427,56296.0,56295.0,0.18233]
[1725584421278,1.495497,56296.0,56295.0,0.18233]
[1725584421911,1.495497,56296.0,56295.0,0.08213]
[1725584422126,1.495497,56296.0,56295.0,0.00163]
[1725584422361,1.850762,56296.0,56295.0,0.00163]
[1725584422797,1.8786052,56296.0,56295.0,0.00163]
[1725584423015,2.2338702,56296.0,56295.0,0.00163]
[1725584423249,1.8786052,56296.0,56295.0,0.00163]
[1725584423507,1.8806052,56296.0,56295.0,0.00163]
[1725584423945,1.8786052,56296.0,56295.0,0.00163]
[1725584424163,1.8886052,56296.0,56295.0,0.00163]
[1725584424379,1.8906052,56296.0,56295.0,0.00163]
[1725584424597,2.2338702,56296.0,56295.0,0.00163]
[1725584424825,1.8786052,56296.0,56295.0,0.17513]
[1725584425280,1.7265352,56296.0,56295.0,0.17513]
[1725584425514,3.6134092,56296.0,56295.0,0.07443]
[1725584425741,3.6134092,56296.0,56295.0,0.00163]
[1725584428290,3.585566,56296.0,56295.0,0.00163]
[1725584429410,3.357995,56296.0,56295.0,0.00163]
[1725584429622,1.868852,56296.0,56295.0,0.00163]
[1725584431468,1.89669421,56296.0,56295.0,0.00163]
[1725584431910,2.25195921,56296.0,56295.0,0.00163]
[1725584435076,2.25277521,56296.0,56295.0,0.00163]
[1725584436652,2.26477521,56296.0,56295.0,0.00163]
[1725584436865,2.62004021,56296.0,56295.0,0.00163]
[1725584437299,2.97530521,56296.0,56295.0,0.00163]
[1725584437506,3.01250521,56296.0,56295.0,0.00163]
[1725584438401,2.984663,56296.0,56295.0,0.00163]
[1725584438864,7.509238,56296.0,56295.0,0.00163]
[1725584439088,7.509238,56296.0,56295.0,1e-06]
[1725584439326,7.624138,56296.0,56295.0,1e-06]
[1725584439547,7.66809708,56296.0,56295.0,1e-06]
[1725584440841,7.80029123,56296.0,56295.0,1e-06]
[1725584441266,7.82813878,56296.0,56295.0,1e-06]
[1725584441520,7.82822189,56296.0,56295.0,1e-06]
[1725584441756,7.90617748,56296.0,56295.0,1e-06]
[1725584442016,7.60027948,56296.0,56295.0,1e-06]
[1725584442235,8.09004663,56296.0,56295.0,1e-06]
[1725584442443,7.63331863,56296.0,56295.0,1e-06]
[1725584442657,7.73916631,56296.0,56295.0,1e-06]
[1725584443530,6.93331863,56296.0,56295.0,1e-06]
[1725584443947,7.03918289,56296.0,56295.0,1e-06]
[1725584444389,6.93331863,56296.0,56295.0,1e-06]
[1725584445023,7.31331863,56296.0,56295.0,1e-06]
[1725584446577,6.89189463,56296.0,56295.0,1e-06]
[1725584447015,6.11376098,56296.0,56295.0,1e-06]
[1725584447225,5.86465455,56296.0,56295.0,1e-06]
[1725584447440,5.84423155,56296.0,56295.0,1e-06]
[1725584448311,5.816384,56296.0,56295.0,1e-06]
[1725584449481,5.89580951,56296.0,56295.0,1e-06]
[1725584449701,5.816384,56296.0,56295.0,1e-06]
[1725584450807,5.9222797,56296.0,56295.0,1e-06]
[1725584451004,5.96706824,56296.0,56295.0,1e-06]
[1725584451272,5.88581924,56296.0,56295.0,1e-06]
[1725584451509,5.806384,56296.0,56295.0,1e-06]
[1725584451774,5.796384,56296.0,56295.0,1e-06]
[1725584452002,5.91169015,56296.0,56295.0,1e-06]
[1725584452232,5.90169015,56296.0,56295.0,1e-06]
[1725584452423,5.91169015,56296.0,56295.0,1e-06]
[1725584452635,5.92171694,56296.0,56295.0,1e-06]
[1725584453097,5.90171694,56296.0,56295.0,1e-06]
[1725584453327,5.53645194,56296.0,56295.0,1e-06]
[1725584453541,5.84222952,56296.0,56295.0,1e-06]
[1725584453988,5.81222952,56296.0,56295.0,1e-06]
[1725584454467,5.84222952,56296.0,56295.0,1e-06]
[1725584454697,5.94821275,56296.0,56295.0,1e-06]
[1725584455371,5.95021275,56296.0,56295.0,1e-06]
[1725584457815,5.95033276,56296.0,56295.0,1e-06]
[1725584458297,5.92248724,56296.0,56295.0,1e-06]
[1725584458759,5.53522224,56296.0,56295.0,1e-06]
[1725584458939,5.56522224,56296.0,56295.0,1e-06]
[1725584459377,5.92048724,56296.0,56295.0,1e-06]
[1725584460026,5.90048724,56296.0,56295.0,1e-06]
[1725584460237,5.92048724,56296.0,56295.0,1e-06]
[1725584460867,5.90048724,56296.0,56295.0,1e-06]
[1725584461095,4.77588224,56296.0,56295.0,1e-06]
[1725584461542,4.77592559,56296.0,56295.0,1e-06]
[1725584461754,4.44850573,56296.0,56295.0,1e-06]
[1725584461974,3.19242014,56296.0,56295.0,0.170501]
[1725584463360,3.19442014,56296.0,56295.0,1e-06]
[1725584463584,3.24160794,56296.0,56295.0,1e-06]
[1725584463800,3.32122904,56296.0,56295.0,1e-06]
[1725584464052,3.67649404,56296.0,56295.0,1e-06]
[1725584464284,3.62930624,56296.0,56295.0,1e-06]
[1725584464744,3.63930624,56296.0,56295.0,1e-06]
[1725584464995,1.966161,56290.0,56289.0,0.001632]
[1725584465229,7.116161,56290.0,56289.0,0.001632]
[1725584465453,7.353366,56290.0,56289.0,0.001632]
[1725584465706,7.47943207,56290.0,56289.0,0.001632]
[1725584465928,7.53251943,56290.0,56289.0,0.001632]
[1725584466144,7.50833143,56290.0,56289.0,0.001632]
[1725584466365,7.37561304,56290.0,56289.0,0.001632]
[1725584466588,7.3222887,56290.0,56289.0,0.001632]
[1725584466810,5.47256624,56290.0,56289.0,0.001632]
[1725584467057,5.36637604,56290.0,56289.0,0.001632]
[1725584467285,5.47256209,56290.0,56289.0,0.001632]
[1725584467506,5.36637604,56290.0,56289.0,0.001632]
[1725584468149,5.36837604,56290.0,56289.0,0.001632]
[1725584468368,5.33852873,56290.0,56289.0,0.001632]
[1725584469293,5.36517355,56290.0,56289.0,0.001632]
[1725584469553,5.49789921,56290.0,56289.0,0.001632]
[1725584469770,5.41413672,56290.0,56289.0,0.001632]
[1725584471350,2.321586,56287.0,56286.0,0.001632]
[1725584471570,7.50427153,56287.0,56286.0,0.001632]
[1725584471805,7.60427153,56287.0,56286.0,0.001632]
[1725584472033,2.321833,56281.0,56280.0,0.001632]
[1725584472263,7.54943885,56281.0,56280.0,0.001632]
[1725584472505,7.43540266,56281.0,56280.0,0.001632]
[1725584472758,7.355809,56281.0,56280.0,0.001632]
[1725584472988,7.38366015,56281.0,56280.0,0.001632]
[1725584473218,7.38166015,56281.0,56280.0,0.001632]
[1725584473461,5.91675158,56281.0,56280.0,0.001632]
[1725584473904,4.74203658,56281.0,56280.0,0.001632]
[1725584474132,4.74203658,56281.0,56280.0,0.074132]
[1725584474361,4.65437958,56281.0,56280.0,0.074132]
[1725584474580,4.57479715,56281.0,56280.0,0.074132]
[1725584475892,4.61082802,56281.0,56280.0,0.001632]
[1725584476106,4.69041388,56281.0,56280.0,0.001632]
[1725584476316,4.69040453,56281.0,56280.0,0.001632]
[1725584476536,4.68840453,56281.0,56280.0,0.001632]
[1725584476759,3.84651053,56281.0,56280.0,0.074132]
[1725584476982,3.76693402,56281.0,56280.0,0.074132]
[1725584478094,3.70692502,56281.0,56280.0,0.172632]
[1725584478303,3.67907387,56281.0,56280.0,0.172632]
[1725584478970,3.32371487,56281.0,56280.0,0.172632]
[1725584479196,1.97200387,56281.0,56280.0,0.172632]
[1725584479424,1.95236887,56281.0,56280.0,0.172632]
[1725584481934,1.98021753,56281.0,56280.0,0.172632]
[1725584484557,1.75099453,56281.0,56280.0,0.172632]
[1725584484775,3.73773653,56281.0,56280.0,0.172632]
[1725584485017,3.36814253,56281.0,56280.0,0.172632]
[1725584485227,2.16481853,56281.0,56280.0,0.172632]
[1725584485671,1.89837762,56281.0,56280.0,0.172632]
[1725584485889,2.07605662,56281.0,56280.0,0.172632]
[1725584486108,0.07961478,56292.0,56280.0,0.001632]
[1725584486392,0.533038,56281.0,56280.0,0.001632]
[1725584486629,0.177674,56283.0,56280.0,0.001632]
[1725584486830,0.177678,56282.0,56281.0,0.1691]
[1725584487037,0.177678,56282.0,56281.0,0.17707107]
[1725584487256,0.02784813,56289.0,56281.0,0.35474707]
[1725584487480,0.17767,56284.0,56283.0,0.0709]
[1725584487758,0.355316,56288.0,56283.0,0.248571]
[1725584487994,0.4726,56300.0,56291.0,0.0709]
[1725584488225,0.177641,56293.0,56292.0,0.1691]
[1725584488439,0.827842,56300.0,56289.0,0.177653]
[1725584488440,0.01858773,56301.0,56291.0,0.1691]
[1725584488649,0.177627,56298.0,56295.0,0.1691]
[1725584488929,0.01858773,56301.0,56295.0,0.1691]
[1725584488930,0.177623,56299.0,56295.0,0.346735]
[1725584489143,0.01858773,56301.0,56295.0,0.70993176]
[1725584489394,0.07962303,56316.0,56304.0,0.177606]
[1725584489618,0.48781506,56321.0,56307.0,0.1691]
[1725584489619,0.51703673,56315.0,56307.0,0.1691]
[1725584489845,0.51703673,56315.0,56308.0,0.1691]
[1725584489846,0.177591,56309.0,56308.0,0.1691]
[1725584490059,0.177591,56309.0,56308.0,0.17696041]
[1725584490267,0.887957,56309.0,56308.0,0.17696041]
[1725584490692,0.887957,56309.0,56308.0,0.1691]
[1725584492196,0.987957,56309.0,56308.0,0.1691]
[1725584494208,1.01276957,56309.0,56308.0,0.1691]
[1725584495494,1.36795257,56309.0,56308.0,0.1691]
[1725584495972,1.36745257,56309.0,56308.0,0.1691]
[1725584500901,0.88802,56305.0,56304.0,0.0734]
[1725584501130,0.888097,56300.0,56299.0,0.1685]
[1725584501359,1.598575,56300.0,56299.0,0.1685]
[1725584501586,2.640162,56300.0,56299.0,0.1685]
[1725584501823,2.360012,56300.0,56299.0,0.1685]
[1725584502997,0.17767,56284.0,56283.0,0.52650515]
[1725584503235,0.533038,56281.0,56280.0,0.001632]
[1725584503459,0.888397,56281.0,56280.0,0.170132]
[1725584503695,1.243756,56281.0,56280.0,0.170132]
[1725584505993,0.888397,56281.0,56280.0,0.170132]
[1725584506679,0.533038,56281.0,56280.0,0.170132]
[1725584507889,1.243756,56281.0,56280.0,0.170132]
[1725584508142,2.218082,56281.0,56280.0,0.001632]
[1725584508397,2.218082,56281.0,56264.0,0.00164]
[1725584508398,1.24411,56265.0,56264.0,0.00164]
[1725584508623,1.69957,56265.0,56264.0,0.00164]
[1725584508847,1.69957,56265.0,56252.0,0.0951]
[1725584508848,0.890745,56259.0,56252.0,0.0951]
[1725584509085,6.305784,56259.0,56246.0,0.0951]
[1725584509309,1.600024,56249.0,56240.0,0.0951]
[1725584509558,2.94549,56249.0,56240.0,0.0951]
[1725584509781,2.289636,56249.0,56240.0,0.0951]
[1725584510042,1.877302,56249.0,56240.0,0.0951]
[1725584510262,1.521741,56249.0,56240.0,0.0951]
[1725584511191,1.54960632,56249.0,56240.0,0.0951]
[1725584511645,1.37232832,56249.0,56240.0,0.0986561]
[1725584511860,1.64835632,56249.0,56240.0,0.0951]
[1725584512126,1.47842032,56249.0,56240.0,0.0951]
[1725584512366,1.01676732,56249.0,56241.0,0.177805]
[1725584512591,0.66120632,56249.0,56248.0,0.09674]
[1725584513059,1.01676732,56249.0,56248.0,0.09674]
[1725584513346,1.01676732,56249.0,56248.0,0.00164]
[1725584513347,1.26550732,56249.0,56248.0,0.00164]
[1725584513603,1.62106832,56249.0,56248.0,0.00164]
[1725584515971,1.18435832,56249.0,56248.0,0.00164]
[1725584516410,1.37232832,56249.0,56248.0,0.00164]
[1725584516629,1.56832832,56249.0,56248.0,0.00164]
[1725584517465,1.92388932,56249.0,56248.0,0.00164]
[1725584518353,1.896024,56249.0,56248.0,0.00164]
[1725584519935,1.92349204,56249.0,56248.0,0.00164]
[1725584521261,2.01969204,56249.0,56248.0,0.00164]
[1725584521483,2.10034046,56249.0,56248.0,0.00164]
[1725584521701,2.49120146,56249.0,56248.0,0.00164]
[1725584521919,1.600281,56240.0,56239.0,0.00164]
[1725584522124,4.780187,56240.0,56239.0,0.00164]
[1725584522330,5.520661,56240.0,56239.0,0.00164]
[1725584522559,5.419471,56240.0,56239.0,0.00164]
[1725584522794,5.44534148,56240.0,56239.0,0.00164]
[1725584523239,4.50337848,56240.0,56239.0,0.00164]
[1725584523778,4.88587825,56240.0,56239.0,0.00164]
[1725584524246,4.89587825,56240.0,56239.0,0.00164]
[1725584524459,2.082346,56233.0,56216.0,0.52650515]
[1725584524671,0.533578,56224.0,56216.0,0.52650515]
[1725584524898,1.600735,56224.0,56216.0,0.52650515]
[1725584525136,1.600735,56224.0,56209.0,0.0956]
[1725584525137,2.056454,56224.0,56209.0,0.0956]
[1725584525345,2.24491967,56224.0,56209.0,0.0956]
[1725584525579,2.18817167,56224.0,56209.0,0.0956]
[1725584526260,2.18817167,56224.0,56222.0,0.0956]
[1725584526934,2.18817167,56224.0,56223.0,0.07674]
[1725584527391,1.83245267,56224.0,56223.0,0.07674]
[1725584527608,1.85671302,56224.0,56223.0,0.07674]
[1725584527822,1.79499102,56224.0,56223.0,0.07674]
[1725584528265,1.76711135,56224.0,56223.0,0.07674]